[Event "Elitserien 2022/2023"]
[Site "Elite Hotel Marina Plaza, Kungstorget 6, Helsingborg, Sweden"]
[Date "2022.10.14"]
[Round "1.1"]
[White "Hauge, Lars Oskar"]
[Black "Gdanski, Jacek"]
[Result "0-1"]
[TimeControl "90 minutes for 40 moves + 30 minutes for the rest of the game + 30 seconds per move from move one."]
[WhiteTitle "GM"]
[BlackTitle "GM"]
[WhiteFideId "1509276"]
[BlackFideId "1100106"]
[WhiteElo "2533"]
[BlackElo "2493"]

1. e4 {[%clk 01:30:56]} {[%emt 00:00:03]} e6 {[%clk 01:30:47]} {[%emt
00:00:14]} 2. d4 {[%clk 01:31:19]} {[%emt 00:00:06]} d5 {[%clk 01:31:13]}
{[%emt 00:00:04]} 3. Nc3 {[%clk 01:31:37]} {[%emt 00:00:12]} Bb4 {[%clk
01:30:54]} {[%emt 00:00:49]} 4. e5 {[%clk 01:31:57]} {[%emt 00:00:10]} b6
{[%clk 01:29:01]} {[%emt 00:02:23]} 5. Qg4 {[%clk 01:30:14]} {[%emt 00:02:12]}
Bf8 {[%clk 01:29:00]} {[%emt 00:00:32]} 6. h4 {[%clk 01:24:34]} {[%emt
00:06:10]} Qd7 {[%clk 01:16:27]} {[%emt 00:13:03]} 7. h5 {[%clk 01:24:02]}
{[%emt 00:01:03]} h6 {[%clk 01:16:45]} {[%emt 00:00:12]} 8. f4 {[%clk
01:21:21]} {[%emt 00:03:10]} Ne7 {[%clk 01:10:43]} {[%emt 00:06:32]} 9. Be3
{[%clk 01:14:38]} {[%emt 00:07:13]} Nbc6 {[%clk 00:49:24]} {[%emt 00:21:49]} 10.
O-O-O {[%clk 01:14:18]} {[%emt 00:00:50]} Bb7 {[%clk 00:49:33]} {[%emt
00:00:21]} 11. Qh3 {[%clk 01:14:23]} {[%emt 00:00:25]} O-O-O {[%clk 00:46:37]}
{[%emt 00:03:26]} 12. Kb1 {[%clk 01:12:40]} {[%emt 00:02:13]} Kb8 {[%clk
00:46:29]} {[%emt 00:00:38]} 13. Nf3 {[%clk 01:12:11]} {[%emt 00:00:59]} Na5
{[%clk 00:37:10]} {[%emt 00:09:48]} 14. g4 {[%clk 01:07:06]} {[%emt 00:05:36]}
a6 {[%clk 00:27:45]} {[%emt 00:09:55]} 15. Nh4 {[%clk 00:57:39]} {[%emt
00:09:57]} Qc8 {[%clk 00:13:53]} {[%emt 00:14:22]} 16. f5 {[%clk 00:54:00]}
{[%emt 00:04:10]} c5 {[%clk 00:12:32]} {[%emt 00:01:50]} 17. Ne2 {[%clk
00:51:27]} {[%emt 00:03:03]} Nc4 {[%clk 00:10:10]} {[%emt 00:02:52]} 18. fxe6
{[%clk 00:50:07]} {[%emt 00:01:51]} Nxe3 {[%clk 00:09:47]} {[%emt 00:00:53]} 19.
Qxe3 {[%clk 00:50:30]} {[%emt 00:00:07]} fxe6 {[%clk 00:09:31]} {[%emt
00:00:45]} 20. c3 {[%clk 00:50:54]} {[%emt 00:00:06]} Rg8 {[%clk 00:04:00]}
{[%emt 00:06:01]} 21. g5 {[%clk 00:44:46]} {[%emt 00:06:40]} Qc6 {[%clk
00:03:18]} {[%emt 00:01:11]} 22. Rg1 {[%clk 00:43:43]} {[%emt 00:01:31]} hxg5
{[%clk 00:03:19]} {[%emt 00:00:30]} 23. Qxg5 {[%clk 00:43:31]} {[%emt
00:00:42]} Bc8 {[%clk 00:02:52]} {[%emt 00:00:57]} 24. Nf4 {[%clk 00:41:53]}
{[%emt 00:02:08]} cxd4 {[%clk 00:02:55]} {[%emt 00:00:27]} 25. cxd4 {[%clk
00:42:11]} {[%emt 00:00:13]} Qa4 {[%clk 00:02:55]} {[%emt 00:00:29]} 26. Bd3
{[%clk 00:37:12]} {[%emt 00:05:29]} Nc6 {[%clk 00:02:58]} {[%emt 00:00:27]} 27.
Bc2 {[%clk 00:37:38]} {[%emt 00:00:05]} Qb5 {[%clk 00:02:52]} {[%emt 00:00:36]}
28. Bd3 {[%clk 00:32:05]} {[%emt 00:06:02]} Qa4 {[%clk 00:02:36]} {[%emt
00:00:46]} 29. Bc2 {[%clk 00:22:43]} {[%emt 00:09:52]} Qb5 {[%clk 00:03:06]} 30.
Qg3 {[%clk 00:23:02]} {[%emt 00:00:10]} Bb4 {[%clk 00:02:01]} {[%emt 00:01:35]}
31. Nhg6 {[%clk 00:22:42]} {[%emt 00:00:51]} Bd7 {[%clk 00:02:13]} {[%emt
00:00:18]} 32. a3 {[%clk 00:17:54]} {[%emt 00:05:18]} Ba5 {[%clk 00:01:45]}
{[%emt 00:00:58]} 33. Bd3 {[%clk 00:16:47]} {[%emt 00:01:37]} Qa4 {[%clk
00:02:13]} {[%emt 00:00:02]} 34. Bc2 {[%clk 00:17:07]} {[%emt 00:00:10]} Qb5
{[%clk 00:02:41]} {[%emt 00:00:01]} 35. Rd3 {[%clk 00:16:22]} {[%emt 00:01:15]}
Rc8 {[%clk 00:02:16]} {[%emt 00:00:55]} 36. Qe3 {[%clk 00:15:29]} {[%emt
00:01:23]} Rc7 {[%clk 00:01:54]} {[%emt 00:00:52]} 37. Rc1 {[%clk 00:11:39]}
{[%emt 00:04:19]} Rgc8 {[%clk 00:02:05]} {[%emt 00:00:19]} 38. Ne2 {[%clk
00:12:04]} {[%emt 00:00:06]} Ka7 {[%clk 00:01:19]} {[%emt 00:01:15]} 39. Rb3
{[%clk 00:11:38]} {[%emt 00:00:56]} Bb4 {[%clk 00:00:47]} {[%emt 00:01:02]} 40.
axb4 {[%clk 00:11:27]} {[%emt 00:00:41]} Nxb4 {[%clk 00:01:05]} {[%emt
00:00:12]} 41. Bd3 {[%clk 00:00:50]} {[%emt 00:11:07]} Qa4 {[%clk 00:28:05]}
{[%emt 00:03:30]} 42. Ra3 {[%clk 00:22:12]} {[%emt 00:09:07]} Rxc1+ {[%clk
00:28:29]} {[%emt 00:00:06]} 43. Nxc1 {[%clk 00:22:36]} {[%emt 00:00:06]} Qd1
{[%clk 00:28:48]} {[%emt 00:00:12]} 44. Nf4 {[%clk 00:16:17]} {[%emt 00:06:50]}
Ba4 {[%clk 00:14:21]} {[%emt 00:14:56]} 45. Rxa4 {[%clk 00:15:28]} {[%emt
00:01:20]} Qxa4 {[%clk 00:14:28]} {[%emt 00:00:21]} 46. Nfe2 {[%clk 00:13:46]}
{[%emt 00:02:13]} Nc2 {[%clk 00:07:23]} {[%emt 00:07:35]} 47. Bxc2 {[%clk
00:14:10]} {[%emt 00:00:05]} Qxc2+ {[%clk 00:07:49]} {[%emt 00:00:04]} 48. Ka2
{[%clk 00:13:13]} {[%emt 00:01:29]} Rc4 {[%clk 00:05:57]} {[%emt 00:02:21]} 49.
Nc3 {[%clk 00:13:34]} {[%emt 00:00:09]} Rb4 {[%clk 00:05:26]} {[%emt 00:01:01]}
0-1

[Event "Elitserien 2022/2023"]
[Site "Elite Hotel Marina Plaza, Kungstorget 6, Helsingborg, Sweden"]
[Date "2022.10.14"]
[Round "1.2"]
[White "Danchevski, Orce"]
[Black "Lokander, Martin"]
[Result "1/2-1/2"]
[TimeControl "90 minutes for 40 moves + 30 minutes for the rest of the game + 30 seconds per move from move one."]
[WhiteTitle "IM"]
[BlackTitle "IM"]
[WhiteFideId "15000311"]
[BlackFideId "1709569"]
[WhiteElo "2332"]
[BlackElo "2453"]

1. d4 {[%clk 01:30:47]} {[%emt 00:00:12]} d5 {[%clk 01:29:49]} {[%emt
00:01:11]} 2. Nf3 {[%clk 01:30:28]} {[%emt 00:00:49]} Nf6 {[%clk 01:30:08]}
{[%emt 00:00:13]} 3. c4 {[%clk 01:30:42]} {[%emt 00:00:15]} e6 {[%clk
01:30:13]} {[%emt 00:00:26]} 4. g3 {[%clk 01:30:33]} {[%emt 00:00:38]} Be7
{[%clk 01:30:07]} {[%emt 00:00:37]} 5. Bg2 {[%clk 01:30:47]} {[%emt 00:00:14]}
O-O {[%clk 01:30:32]} {[%emt 00:00:06]} 6. O-O {[%clk 01:30:57]} {[%emt
00:00:19]} c6 {[%clk 01:30:14]} {[%emt 00:00:49]} 7. Nbd2 {[%clk 01:27:15]}
{[%emt 00:04:11]} b6 {[%clk 01:30:05]} {[%emt 00:00:41]} 8. Qc2 {[%clk
01:27:20]} {[%emt 00:00:24]} c5 {[%clk 01:30:28]} {[%emt 00:00:08]} 9. cxd5
{[%clk 01:20:21]} {[%emt 00:07:27]} exd5 {[%clk 01:30:16]} {[%emt 00:00:43]} 10.
dxc5 {[%clk 01:18:51]} {[%emt 00:02:01]} bxc5 {[%clk 01:30:41]} {[%emt
00:00:05]} 11. e4 {[%clk 01:18:18]} {[%emt 00:01:02]} Nc6 {[%clk 01:31:03]}
{[%emt 00:00:08]} 12. exd5 {[%clk 01:16:07]} {[%emt 00:02:41]} Nxd5 {[%clk
01:31:29]} {[%emt 00:00:05]} 13. a3 {[%clk 00:53:17]} {[%emt 00:23:19]} g6
{[%clk 01:22:04]} {[%emt 00:09:55]} 14. Ne4 {[%clk 00:47:58]} {[%emt 00:05:48]}
Qb6 {[%clk 01:16:40]} {[%emt 00:05:55]} 15. Bg5 {[%clk 00:39:52]} {[%emt
00:08:35]} Bf5 {[%clk 01:04:39]} {[%emt 00:12:31]} 16. Qc4 {[%clk 00:35:09]}
{[%emt 00:05:13]} Rad8 {[%clk 00:58:05]} {[%emt 00:07:05]} 17. Bxe7 {[%clk
00:33:05]} {[%emt 00:02:34]} Ndxe7 {[%clk 00:57:34]} {[%emt 00:01:01]} 18. Nxc5
{[%clk 00:32:34]} {[%emt 00:01:00]} Qxb2 {[%clk 00:51:47]} {[%emt 00:06:17]} 19.
Nh4 {[%clk 00:19:11]} {[%emt 00:13:53]} Nd4 {[%clk 00:43:23]} {[%emt 00:08:55]}
20. Ra2 {[%clk 00:18:13]} {[%emt 00:01:28]} Qb6 {[%emt 00:03:24]} 21. Rd2
{[%clk 00:16:09]} Nb5 {[%clk 00:37:58]} {[%emt 00:05:34]} 22. Nxf5 {[%clk
00:14:41]} {[%emt 00:01:58]} Nxf5 {[%clk 00:38:23]} {[%emt 00:00:06]} 23. Nd7
{[%clk 00:13:35]} {[%emt 00:01:35]} Qa5 {[%clk 00:38:01]} {[%emt 00:00:53]} 24.
Rd5 {[%clk 00:03:56]} {[%emt 00:10:08]} Nfd6 {[%clk 00:37:30]} {[%emt
00:01:02]} 25. Nf6+ {[%clk 00:04:18]} {[%emt 00:00:08]} Kg7 {[%clk 00:36:03]}
{[%emt 00:01:57]} 26. Qf4 {[%clk 00:02:57]} {[%emt 00:01:51]} Qc3 {[%clk
00:33:52]} {[%emt 00:02:41]} 27. Nh5+ {[%clk 00:02:41]} {[%emt 00:00:45]} gxh5
{[%clk 00:30:58]} {[%emt 00:03:25]} 28. a4 {[%clk 00:03:06]} {[%emt 00:00:06]}
Nc7 {[%clk 00:27:55]} {[%emt 00:03:33]} 29. Rc1 {[%clk 00:02:32]} {[%emt
00:01:03]} Ne6 {[%clk 00:18:56]} {[%emt 00:09:29]} 30. Rxc3 {[%clk 00:02:12]}
{[%emt 00:00:50]} Nxf4 {[%clk 00:19:24]} {[%emt 00:00:02]} 31. gxf4 {[%clk
00:02:35]} {[%emt 00:00:07]} f5 {[%clk 00:19:03]} {[%emt 00:00:51]} 32. Rg3+
{[%clk 00:01:36]} {[%emt 00:01:29]} Kf6 {[%clk 00:18:32]} {[%emt 00:01:02]} 33.
Rg5 {[%clk 00:01:38]} {[%emt 00:00:27]} h6 {[%clk 00:14:53]} {[%emt 00:04:09]}
34. Rxh5 {[%clk 00:01:47]} {[%emt 00:00:20]} Kg6 {[%clk 00:15:22]} {[%emt
00:00:02]} 35. Rh3 {[%clk 00:02:10]} {[%emt 00:00:07]} Ne4 {[%clk 00:15:48]}
{[%emt 00:00:05]} 36. Rhd3 {[%clk 00:01:33]} {[%emt 00:01:06]} Rxd5 {[%clk
00:15:55]} {[%emt 00:00:23]} 37. Rxd5 {[%clk 00:01:59]} {[%emt 00:00:04]} Nc3
{[%clk 00:16:02]} {[%emt 00:00:22]} 38. Ra5 {[%clk 00:02:01]} {[%emt 00:00:29]}
Ne2+ {[%clk 00:15:14]} {[%emt 00:01:18]} 39. Kh1 {[%clk 00:00:56]} {[%emt
00:01:34]} Rf7 {[%clk 00:14:05]} {[%emt 00:01:40]} 40. Ra6+ {[%clk 00:00:58]}
{[%emt 00:00:28]} Kg7 {[%clk 00:14:31]} {[%emt 00:00:04]} 41. Bf1 {[%clk
00:28:17]} {[%emt 00:03:10]} Nxf4 {[%clk 00:44:50]} {[%emt 00:00:11]} 42. h3
{[%clk 00:28:21]} {[%emt 00:00:26]} h5 {[%clk 00:43:28]} {[%emt 00:01:52]} 43.
h4 {[%clk 00:24:59]} {[%emt 00:03:52]} Re7 {[%clk 00:30:37]} {[%emt 00:13:22]}
44. Kh2 {[%clk 00:24:56]} {[%emt 00:00:31]} Ng6 {[%clk 00:29:57]} {[%emt
00:01:11]} 45. Kg3 {[%clk 00:23:52]} {[%emt 00:01:34]} f4+ {[%clk 00:30:06]}
{[%emt 00:00:22]} 46. Kh3 {[%clk 00:19:33]} {[%emt 00:04:48]} Rc7 {[%clk
00:21:06]} {[%emt 00:09:30]} 47. Bd3 {[%clk 00:16:39]} {[%emt 00:03:24]} Ne5
{[%clk 00:20:53]} {[%emt 00:00:43]} 48. Be4 {[%clk 00:17:03]} {[%emt 00:00:06]}
Nd7 {[%clk 00:18:16]} {[%emt 00:03:08]} 49. Rg6+ {[%clk 00:12:36]} {[%emt
00:04:56]} Kf7 {[%clk 00:17:48]} {[%emt 00:00:59]} 50. Rg5 {[%clk 00:12:56]}
{[%emt 00:00:09]} Rc5 {[%clk 00:14:31]} {[%emt 00:03:47]} 51. Bf3 {[%clk
00:07:31]} {[%emt 00:05:55]} Kf6 {[%clk 00:07:09]} {[%emt 00:07:53]} 52. Rxh5
{[%clk 00:06:49]} {[%emt 00:01:12]} Ne5 {[%clk 00:07:22]} {[%emt 00:00:17]} 53.
Be4 {[%clk 00:06:38]} {[%emt 00:00:40]} Rc3+ {[%clk 00:06:39]} {[%emt
00:01:13]} 54. Kg2 {[%clk 00:06:11]} {[%emt 00:00:56]} Nd7 {[%clk 00:03:51]}
{[%emt 00:03:19]} 55. a5 {[%clk 00:03:13]} {[%emt 00:03:28]} Rc5 {[%clk
00:02:20]} {[%emt 00:02:02]} 56. Rxc5 {[%clk 00:03:13]} {[%emt 00:00:30]} Nxc5
{[%clk 00:02:48]} {[%emt 00:00:02]} 57. Bc6 {[%clk 00:02:55]} {[%emt 00:00:47]}
a6 {[%clk 00:02:37]} {[%emt 00:00:42]} 58. Bd5 {[%clk 00:03:13]} {[%emt
00:00:11]} Ke5 {[%clk 00:02:19]} {[%emt 00:00:49]} 59. Bc4 {[%clk 00:03:28]}
{[%emt 00:00:14]} Nb7 {[%clk 00:02:43]} {[%emt 00:00:07]} 60. Bxa6 {[%clk
00:03:44]} {[%emt 00:00:14]} Nxa5 {[%clk 00:03:10]} {[%emt 00:00:02]} 61. Kf3
{[%clk 00:03:49]} {[%emt 00:00:24]} Nb3 {[%clk 00:02:41]} {[%emt 00:01:02]} 62.
Kg4 {[%clk 00:03:59]} {[%emt 00:00:19]} Nc5 {[%clk 00:01:48]} {[%emt 00:01:23]}
63. Be2 {[%clk 00:02:53]} {[%emt 00:01:35]} Ne6 {[%clk 00:01:08]} {[%emt
00:01:10]} 64. h5 {[%clk 00:02:55]} {[%emt 00:00:28]} Kf6 {[%clk 00:01:27]}
{[%emt 00:00:12]} 65. Bc4 {[%clk 00:03:12]} {[%emt 00:00:12]} Ng5 {[%clk
00:01:47]} {[%emt 00:00:11]} 66. Bd3 {[%clk 00:03:07]} {[%emt 00:00:35]} Ne6
{[%clk 00:01:53]} {[%emt 00:00:24]} 67. h6 {[%clk 00:03:14]} {[%emt 00:00:22]}
Nc5 {[%clk 00:01:58]} {[%emt 00:00:26]} 68. Bf5 {[%clk 00:03:21]} {[%emt
00:00:22]} f3 {[%clk 00:01:15]} {[%emt 00:01:14]} 69. Kxf3 {[%clk 00:03:39]}
{[%emt 00:00:12]} Nb7 {[%clk 00:01:42]} {[%emt 00:00:03]} 70. Kg4 {[%clk
00:03:19]} {[%emt 00:00:50]} Nd6 {[%clk 00:02:10]} {[%emt 00:00:02]} 71. Bd3
{[%clk 00:03:40]} {[%emt 00:00:08]} Nf7 {[%clk 00:02:29]} {[%emt 00:00:11]} 72.
Kh5 {[%clk 00:03:53]} {[%emt 00:00:17]} Ne5 {[%clk 00:02:37]} {[%emt 00:00:22]}
73. Be4 {[%clk 00:04:09]} {[%emt 00:00:13]} Nf7 {[%clk 00:02:36]} {[%emt
00:00:33]} 74. f4 {[%clk 00:04:17]} {[%emt 00:00:21]} Nd6 {[%clk 00:02:47]}
{[%emt 00:00:19]} 75. Bd3 {[%clk 00:04:31]} {[%emt 00:00:16]} Nf7 {[%clk
00:03:06]} {[%emt 00:00:12]} 76. Bg6 {[%clk 00:04:14]} {[%emt 00:00:45]} Nd6
{[%clk 00:03:02]} {[%emt 00:00:36]} 77. h7 {[%clk 00:03:58]} {[%emt 00:00:45]}
Kg7 {[%clk 00:03:31]} {[%emt 00:00:02]} 78. Kg5 {[%clk 00:04:21]} {[%emt
00:00:07]} Kh8 {[%clk 00:03:18]} {[%emt 00:00:43]} 79. Kf6 {[%clk 00:04:36]}
{[%emt 00:00:14]} Nc4 {[%clk 00:03:39]} {[%emt 00:00:10]} 80. Kf7 {[%clk
00:02:35]} {[%emt 00:02:28]} Ne5+ {[%clk 00:04:03]} {[%emt 00:00:08]} 81. Kf6
{[%clk 00:01:37]} {[%emt 00:01:28]} Nxg6 {[%clk 00:04:26]} {[%emt 00:00:07]}
1/2-1/2

[Event "Elitserien 2022/2023"]
[Site "Elite Hotel Marina Plaza, Kungstorget 6, Helsingborg, Sweden"]
[Date "2022.10.14"]
[Round "1.3"]
[White "Olund, Joar"]
[Black "Lukez, Franko"]
[Result "1-0"]
[TimeControl "90 minutes for 40 moves + 30 minutes for the rest of the game + 30 seconds per move from move one."]
[WhiteTitle "FM"]
[BlackTitle "FM"]
[WhiteFideId "1714848"]
[BlackFideId "1700626"]
[WhiteElo "2409"]
[BlackElo "2264"]

1. d4 {[%clk 01:30:57]} {[%emt 00:00:02]} g6 {[%clk 01:30:40]} {[%emt
00:00:20]} 2. e4 {[%clk 01:31:03]} {[%emt 00:00:25]} Bg7 {[%clk 01:31:01]}
{[%emt 00:00:08]} 3. Nc3 {[%clk 01:31:22]} {[%emt 00:00:11]} d6 {[%clk
01:31:14]} {[%emt 00:00:17]} 4. Be3 {[%clk 01:31:39]} {[%emt 00:00:13]} a6
{[%clk 01:31:10]} {[%emt 00:00:34]} 5. Qd2 {[%clk 01:31:45]} {[%emt 00:00:24]}
b5 {[%clk 01:31:27]} {[%emt 00:00:13]} 6. h4 {[%clk 01:31:58]} {[%emt
00:00:18]} h5 {[%clk 01:31:42]} {[%emt 00:00:14]} 7. f3 {[%clk 01:31:22]}
{[%emt 00:01:06]} c6 {[%clk 01:31:59]} {[%emt 00:00:13]} 8. Nh3 {[%clk
01:31:30]} {[%emt 00:00:23]} Bxh3 {[%clk 01:32:21]} {[%emt 00:00:08]} 9. Rxh3
{[%clk 01:31:58]} {[%emt 00:00:02]} Nd7 {[%clk 01:32:35]} {[%emt 00:00:16]} 10.
a4 {[%clk 01:31:01]} {[%emt 00:01:27]} b4 {[%clk 01:32:43]} {[%emt 00:00:22]}
11. Nd1 {[%clk 01:28:36]} {[%emt 00:02:55]} a5 {[%clk 01:32:58]} {[%emt
00:00:14]} 12. c3 {[%clk 01:27:51]} {[%emt 00:01:16]} bxc3 {[%clk 01:32:18]}
{[%emt 00:01:09]} 13. bxc3 {[%clk 01:28:17]} {[%emt 00:00:05]} Ngf6 {[%clk
01:31:28]} {[%emt 00:01:19]} 14. Nf2 {[%clk 01:25:55]} {[%emt 00:02:52]} Qc7
{[%clk 01:24:11]} {[%emt 00:07:48]} 15. Be2 {[%clk 01:24:48]} {[%emt 00:01:38]}
c5 {[%clk 01:16:34]} {[%emt 00:08:06]} 16. g4 {[%clk 01:21:27]} {[%emt
00:03:51]} hxg4 {[%clk 01:12:54]} {[%emt 00:04:10]} 17. fxg4 {[%clk 01:21:35]}
{[%emt 00:00:22]} cxd4 {[%clk 01:13:15]} {[%emt 00:00:09]} 18. cxd4 {[%clk
01:21:41]} {[%emt 00:00:24]} Rc8 {[%clk 01:13:24]} {[%emt 00:00:19]} 19. Bb5
{[%clk 01:12:32]} {[%emt 00:09:40]} Qc3 {[%clk 01:05:04]} {[%emt 00:08:50]} 20.
Rc1 {[%clk 01:09:10]} {[%emt 00:03:51]} Qxd2+ {[%clk 01:02:08]} {[%emt
00:03:28]} 21. Bxd2 {[%clk 01:07:09]} {[%emt 00:02:31]} Rxc1+ {[%clk 00:56:35]}
{[%emt 00:06:03]} 22. Bxc1 {[%clk 01:07:36]} {[%emt 00:00:02]} Nh7 {[%clk
00:47:24]} {[%emt 00:09:42]} 23. Bb2 {[%clk 01:05:01]} {[%emt 00:03:05]} e6
{[%clk 00:38:40]} {[%emt 00:09:13]} 24. e5 {[%clk 00:45:39]} {[%emt 00:19:53]}
dxe5 {[%clk 00:33:08]} {[%emt 00:06:02]} 25. dxe5 {[%clk 00:45:21]} {[%emt
00:00:48]} Bf8 {[%clk 00:33:01]} {[%emt 00:00:37]} 26. Rf3 {[%clk 00:32:12]}
{[%emt 00:13:39]} Bb4+ {[%clk 00:31:31]} {[%emt 00:01:59]} 27. Ke2 {[%clk
00:32:16]} {[%emt 00:00:27]} Nhf8 {[%clk 00:29:48]} {[%emt 00:02:13]} 28. Rh3
{[%clk 00:31:10]} {[%emt 00:01:36]} Kd8 {[%clk 00:15:34]} {[%emt 00:14:44]} 29.
Ne4 {[%clk 00:30:35]} {[%emt 00:01:05]} Ke7 {[%clk 00:14:36]} {[%emt 00:01:27]}
30. h5 {[%clk 00:26:10]} {[%emt 00:04:55]} gxh5 {[%clk 00:14:38]} {[%emt
00:00:28]} 31. gxh5 {[%clk 00:26:33]} {[%emt 00:00:08]} Rg8 {[%clk 00:10:37]}
{[%emt 00:04:31]} 32. Rh2 {[%clk 00:22:04]} {[%emt 00:04:59]} Nh7 {[%clk
00:09:22]} {[%emt 00:01:45]} 33. h6 {[%clk 00:17:50]} {[%emt 00:04:44]} Nb6
{[%clk 00:03:23]} {[%emt 00:06:28]} 34. Bd3 {[%clk 00:16:04]} {[%emt 00:02:16]}
Nd5 {[%clk 00:01:50]} {[%emt 00:02:03]} 35. Nf6 {[%clk 00:11:04]} {[%emt
00:05:31]} Nhxf6 {[%clk 00:02:11]} {[%emt 00:00:09]} 36. exf6+ {[%clk
00:11:29]} {[%emt 00:00:05]} Kd6 {[%clk 00:02:04]} {[%emt 00:00:36]} 37. h7
{[%clk 00:10:12]} {[%emt 00:01:48]} Rh8 {[%clk 00:02:27]} {[%emt 00:00:07]} 38.
Kf3 {[%clk 00:09:54]} {[%emt 00:00:47]} e5 {[%clk 00:01:56]} {[%emt 00:01:02]}
39. Ke4 {[%clk 00:06:02]} {[%emt 00:04:21]} Nxf6+ {[%clk 00:00:45]} {[%emt
00:01:41]} 40. Kf5 {[%clk 00:06:21]} 1-0

[Event "Elitserien 2022/2023"]
[Site "Elite Hotel Marina Plaza, Kungstorget 6, Helsingborg, Sweden"]
[Date "2022.10.14"]
[Round "1.4"]
[White "Vernersson, Per"]
[Black "Thorn, Eric"]
[Result "0-1"]
[TimeControl "90 minutes for 40 moves + 30 minutes for the rest of the game + 30 seconds per move from move one."]
[BlackTitle "FM"]
[WhiteFideId "1700863"]
[BlackFideId "1710729"]
[WhiteElo "2264"]
[BlackElo "2342"]

1. Nf3 {[%clk 01:30:56]} {[%emt 00:00:03]} d5 {[%clk 01:30:55]} {[%emt
00:00:06]} 2. c4 {[%clk 01:31:11]} {[%emt 00:00:14]} d4 {[%clk 01:29:31]}
{[%emt 00:01:54]} 3. d3 {[%clk 01:31:10]} {[%emt 00:00:31]} c5 {[%clk
01:28:16]} {[%emt 00:01:45]} 4. b4 {[%clk 01:30:22]} {[%emt 00:01:19]} cxb4
{[%clk 01:24:21]} {[%emt 00:04:25]} 5. a3 {[%clk 01:29:45]} {[%emt 00:01:06]}
bxa3 {[%clk 01:21:10]} {[%emt 00:03:42]} 6. Bxa3 {[%clk 01:29:26]} {[%emt
00:00:49]} Nc6 {[%clk 01:19:41]} {[%emt 00:01:59]} 7. g3 {[%clk 01:29:30]}
{[%emt 00:00:26]} g6 {[%clk 01:18:27]} {[%emt 00:01:43]} 8. Bg2 {[%clk
01:29:14]} {[%emt 00:00:46]} Bg7 {[%clk 01:17:42]} {[%emt 00:01:16]} 9. O-O
{[%clk 01:28:19]} {[%emt 00:01:24]} Nf6 {[%clk 01:15:05]} {[%emt 00:03:07]} 10.
Nbd2 {[%clk 01:27:33]} {[%emt 00:01:17]} Rb8 {[%clk 01:12:26]} {[%emt
00:03:08]} 11. Qc2 {[%clk 01:16:42]} {[%emt 00:11:21]} O-O {[%clk 01:11:22]}
{[%emt 00:01:33]} 12. Rfb1 {[%clk 01:16:25]} {[%emt 00:00:48]} b6 {[%clk
01:03:10]} {[%emt 00:08:43]} 13. Ng5 {[%clk 00:57:53]} {[%emt 00:19:01]} Bd7
{[%clk 00:58:36]} {[%emt 00:05:04]} 14. Nde4 {[%clk 00:52:58]} {[%emt
00:05:25]} Nh5 {[%clk 00:52:15]} {[%emt 00:06:51]} 15. Ra2 {[%clk 00:45:43]}
{[%emt 00:07:45]} Bh6 {[%clk 00:44:33]} {[%emt 00:08:12]} 16. Nf3 {[%clk
00:44:30]} {[%emt 00:01:42]} Qc7 {[%clk 00:39:56]} {[%emt 00:05:08]} 17. Bc1
{[%clk 00:37:09]} {[%emt 00:07:52]} Bg7 {[%clk 00:39:04]} {[%emt 00:01:22]} 18.
Qd1 {[%clk 00:36:06]} {[%emt 00:01:31]} Rfc8 {[%clk 00:34:19]} {[%emt
00:05:16]} 19. Ne1 {[%clk 00:31:36]} {[%emt 00:05:01]} a5 {[%clk 00:28:00]}
{[%emt 00:06:49]} 20. Rab2 {[%clk 00:29:28]} {[%emt 00:02:37]} Nb4 {[%clk
00:22:08]} {[%emt 00:06:23]} 21. Bd2 {[%clk 00:28:58]} {[%emt 00:01:00]} Na6
{[%clk 00:22:09]} {[%emt 00:00:29]} 22. Ra2 {[%clk 00:27:38]} {[%emt 00:01:50]}
h6 {[%clk 00:21:39]} {[%emt 00:01:00]} 23. Bc1 {[%clk 00:18:21]} {[%emt
00:09:46]} Nb4 {[%clk 00:18:10]} {[%emt 00:04:00]} 24. Raa1 {[%clk 00:17:38]}
{[%emt 00:01:13]} f5 {[%clk 00:13:20]} {[%emt 00:05:19]} 25. Nd2 {[%clk
00:17:49]} {[%emt 00:00:19]} Nf6 {[%clk 00:13:22]} {[%emt 00:00:28]} 26. Ba3
{[%clk 00:17:56]} {[%emt 00:00:23]} Nc6 {[%clk 00:12:08]} {[%emt 00:01:45]} 27.
Ra2 {[%clk 00:16:45]} {[%emt 00:01:40]} Kh7 {[%clk 00:10:15]} {[%emt 00:02:23]}
28. Rab2 {[%clk 00:16:03]} {[%emt 00:01:13]} e5 {[%clk 00:09:24]} {[%emt
00:01:21]} 29. c5 {[%clk 00:12:33]} {[%emt 00:03:59]} bxc5 {[%clk 00:07:08]}
{[%emt 00:02:47]} 30. Bxc5 {[%clk 00:12:34]} {[%emt 00:00:29]} Rxb2 {[%clk
00:04:07]} 31. Rxb2 {[%clk 00:12:57]} {[%emt 00:03:38]} Be6 {[%clk 00:03:37]}
{[%emt 00:00:59]} 32. Bb6 {[%clk 00:12:05]} {[%emt 00:01:22]} Qd7 {[%clk
00:02:39]} {[%emt 00:01:29]} 33. Qa4 {[%clk 00:11:39]} {[%emt 00:00:56]} Nd5
{[%clk 00:02:11]} {[%emt 00:00:57]} 34. Nc4 {[%clk 00:10:51]} {[%emt 00:01:19]}
Nc3 {[%clk 00:02:19]} {[%emt 00:00:22]} 35. Qa3 {[%clk 00:09:29]} {[%emt
00:01:52]} Bxc4 {[%clk 00:01:28]} {[%emt 00:01:21]} 36. dxc4 {[%clk 00:08:21]}
{[%emt 00:01:38]} e4 {[%clk 00:01:36]} {[%emt 00:00:22]} 37. Rd2 {[%clk
00:08:20]} {[%emt 00:00:29]} Nb1 {[%clk 00:01:42]} {[%emt 00:00:26]} 38. Qc1
{[%clk 00:07:53]} {[%emt 00:00:57]} Nxd2 {[%clk 00:02:08]} {[%emt 00:00:05]} 39.
Qxd2 {[%clk 00:08:19]} {[%emt 00:00:04]} Ne5 {[%clk 00:02:03]} {[%emt
00:00:36]} 40. Bxa5 {[%clk 00:08:11]} {[%emt 00:00:38]} Nxc4 {[%clk 00:02:06]}
{[%emt 00:00:26]} 0-1